[Event "Championnat d'Europe de Blitz"]
[Date "2024.12.09"]
[White "Kazakouski, Valery"]
[Black "Gaponenko, Inna"]
[WhiteElo "2567"]
[BlackElo "2343"]
[Round "2.19"]
[Result "1-0"]
[TimeControl "180+2"]

1. Nf3 {[%clk 00:03:03]} d5 {[%emt 00:00:03] [%clk 00:03:03]} 2. c4 {[%clk
00:03:04]} e6 {[%clk 00:03:04]} 3. b3 {[%emt 00:00:02] [%clk 00:03:04]} Nf6
{[%clk 00:03:05]} 4. Bb2 {[%emt 00:00:01] [%clk 00:03:05]} Be7 {[%clk 00:03:06]}
5. g3 {[%clk 00:03:06]} O-O {[%emt 00:00:01] [%clk 00:03:06]} 6. Bg2 {[%emt
00:00:01] [%clk 00:03:08]} b6 {[%clk 00:03:08]} 7. O-O {[%emt 00:00:02] [%clk
00:03:08]} Bb7 {[%clk 00:03:09]} 8. Nc3 {[%emt 00:00:01] [%clk 00:03:08]} d4
{[%emt 00:00:03] [%clk 00:03:08]} 9. Nb5 {[%emt 00:00:03] [%clk 00:03:07]} c5
{[%emt 00:00:01] [%clk 00:03:09]} 10. e3 {[%emt 00:00:01] [%clk 00:03:08]} a6
{[%clk 00:03:10]} 11. Na3 {[%emt 00:00:01] [%clk 00:03:09]} Bd6 {[%emt 00:00:02]
[%clk 00:03:10]} 12. exd4 {[%emt 00:00:15] [%clk 00:02:56]} cxd4 {[%emt
00:00:01] [%clk 00:03:11]} 13. Re1 {[%emt 00:00:01] [%clk 00:02:57]} Re8 {[%emt
00:00:01] [%clk 00:03:12]} 14. d3 {[%emt 00:00:20] [%clk 00:02:40]} e5 {[%emt
00:00:12] [%clk 00:03:01]} 15. Nc2 {[%emt 00:00:01] [%clk 00:02:41]} Nc6 {[%emt
00:00:29] [%clk 00:02:35]} 16. Nd2 {[%emt 00:00:07] [%clk 00:02:36]} Na5 {[%emt
00:00:43] [%clk 00:01:54]} 17. Bxb7 {[%emt 00:00:14] [%clk 00:02:24]} Nxb7
{[%emt 00:00:01] [%clk 00:01:55]} 18. b4 {[%emt 00:00:01] [%clk 00:02:25]} Bf8
{[%emt 00:00:09] [%clk 00:01:47]} 19. Qf3 {[%emt 00:00:45] [%clk 00:01:42]} Qc7
{[%emt 00:00:11] [%clk 00:01:38]} 20. Rac1 {[%emt 00:00:06] [%clk 00:01:39]} a5
{[%emt 00:00:10] [%clk 00:01:30]} 21. b5 {[%emt 00:00:42] [%clk 00:00:58]} Nc5
{[%emt 00:00:04] [%clk 00:01:28]} 22. Ba3 {[%emt 00:00:01] [%clk 00:01:00]} Na4
{[%emt 00:00:22] [%clk 00:01:08]} 23. Bxf8 {[%emt 00:00:07] [%clk 00:00:55]}
Kxf8 {[%emt 00:00:02] [%clk 00:01:08]} 24. Nb3 {[%emt 00:00:09] [%clk 00:00:48]}
Nc3 {[%emt 00:00:09] [%clk 00:01:01]} 25. a3 {[%emt 00:00:07] [%clk 00:00:43]}
Na2 {[%emt 00:00:07] [%clk 00:00:56]} 26. Ra1 {[%emt 00:00:01] [%clk 00:00:44]}
Nc3 {[%emt 00:00:02] [%clk 00:00:56]} 27. a4 {[%emt 00:00:07] [%clk 00:00:38]}
Qd6 {[%emt 00:00:09] [%clk 00:00:50]} 28. Kg2 {[%emt 00:00:13] [%clk 00:00:27]}
h6 {[%emt 00:00:02] [%clk 00:00:50]} 29. h3 {[%emt 00:00:12] [%clk 00:00:17]}
Ra7 {[%emt 00:00:06] [%clk 00:00:46]} 30. c5 {[%emt 00:00:04] [%clk 00:00:15]}
bxc5 {[%clk 00:00:47]} 31. Na3 {[%clk 00:00:16]} Qd5 {[%emt 00:00:21] [%clk
00:00:28]} 32. Qxd5 {[%emt 00:00:03] [%clk 00:00:16]} Nfxd5 {[%emt 00:00:01]
[%clk 00:00:29]} 33. Nxc5 {[%emt 00:00:03] [%clk 00:00:14]} Nb6 {[%emt 00:00:04]
[%clk 00:00:27]} 34. Nb1 {[%emt 00:00:08] [%clk 00:00:09]} Rc7 {[%emt 00:00:14]
[%clk 00:00:15]} 35. Nxc3 {[%emt 00:00:01] [%clk 00:00:09]} Rxc5 {[%clk
00:00:17]} 36. Ne4 {[%emt 00:00:02] [%clk 00:00:09]} Rc2 {[%emt 00:00:02] [%clk
00:00:16]} 37. Rec1 {[%emt 00:00:03] [%clk 00:00:08]} Rec8 {[%emt 00:00:01]
[%clk 00:00:17]} 38. Re1 {[%emt 00:00:05] [%clk 00:00:05]} Ke7 {[%emt 00:00:09]
[%clk 00:00:10]} 39. g4 {[%emt 00:00:02] [%clk 00:00:05]} f6 {[%emt 00:00:02]
[%clk 00:00:09]} 40. Kg3 {[%emt 00:00:02] [%clk 00:00:05]} Ke6 {[%emt 00:00:02]
[%clk 00:00:10]} 41. f4 {[%emt 00:00:01] [%clk 00:00:06]} exf4+ {[%emt 00:00:02]
[%clk 00:00:09]} 42. Kxf4 {[%clk 00:00:07]} Nd5+ {[%emt 00:00:04] [%clk
00:00:08]} 43. Kf3 {[%emt 00:00:01] [%clk 00:00:09]} Ne3 {[%emt 00:00:01] [%clk
00:00:08]} 44. Rab1 {[%emt 00:00:02] [%clk 00:00:08]} Rb8 {[%emt 00:00:04] [%clk
00:00:07]} 45. b6 {[%clk 00:00:09]} Rc6 {[%emt 00:00:02] [%clk 00:00:07]} 46. b7
{[%clk 00:00:11]} Rc7 {[%clk 00:00:08]} 47. Rb5 {[%clk 00:00:12]} Kd7 {[%emt
00:00:03] [%clk 00:00:07]} 48. Reb1 {[%emt 00:00:02] [%clk 00:00:12]} Kc6 {[%emt
00:00:03] [%clk 00:00:07]} 49. Rc5+ {[%emt 00:00:03] [%clk 00:00:12]} Kd7 {[%emt
00:00:02] [%clk 00:00:08]} 50. Rxa5 {[%clk 00:00:13]} Kc6 {[%emt 00:00:06] [%clk
00:00:04]} 51. Rc5+ {[%emt 00:00:01] [%clk 00:00:14]} Kd7 {[%clk 00:00:06]} 52.
Rcb5 {[%clk 00:00:15]} Kc6 {[%emt 00:00:02] [%clk 00:00:06]} 53. Rb6+ {[%emt
00:00:01] [%clk 00:00:16]} Kd7 {[%emt 00:00:01] [%clk 00:00:07]} 54. a5 {[%clk
00:00:17]} Nd5 {[%emt 00:00:01] [%clk 00:00:07]} 55. Rd6+ {[%clk 00:00:18]} Ke7
{[%emt 00:00:01] [%clk 00:00:09]} 56. Rxd5 {[%clk 00:00:20]} 1-0

[Site "Europe Echecs"]

[Event "Championnat d'Europe de Blitz"]
[Date "2024.12.09"]
[White "Kukk, Sander"]
[Black "Van Foreest, Lucas"]
[WhiteElo "2234"]
[BlackElo "2520"]
[Round "2.20"]
[Result "0-1"]
[TimeControl "180+2"]

1. b3 {[%clk 00:03:03]} d5 {[%emt 00:00:04] [%clk 00:03:02]} 2. e3 {[%clk
00:03:03]} Bf5 {[%emt 00:00:02] [%clk 00:03:03]} 3. Bb2 {[%clk 00:03:04]} e6
{[%emt 00:00:02] [%clk 00:03:03]} 4. Nf3 {[%emt 00:00:02] [%clk 00:03:04]} h6
{[%emt 00:00:02] [%clk 00:03:03]} 5. d4 {[%emt 00:00:02] [%clk 00:03:04]} Nf6
{[%emt 00:00:02] [%clk 00:03:03]} 6. Bd3 {[%emt 00:00:01] [%clk 00:03:04]} Nbd7
{[%emt 00:00:02] [%clk 00:03:04]} 7. O-O {[%emt 00:00:02] [%clk 00:03:03]} c6
{[%emt 00:00:05] [%clk 00:03:02]} 8. Nbd2 {[%emt 00:00:06] [%clk 00:02:59]} Bd6
{[%emt 00:00:09] [%clk 00:02:55]} 9. Qe2 {[%emt 00:00:06] [%clk 00:02:54]} O-O
{[%emt 00:00:08] [%clk 00:02:50]} 10. Ne5 {[%emt 00:00:12] [%clk 00:02:44]} Ne4
{[%emt 00:00:24] [%clk 00:02:28]} 11. Nxd7 {[%emt 00:00:13] [%clk 00:02:32]}
Qxd7 {[%emt 00:00:02] [%clk 00:02:28]} 12. f3 {[%emt 00:00:08] [%clk 00:02:27]}
Nxd2 {[%emt 00:00:04] [%clk 00:02:27]} 13. Qxd2 {[%emt 00:00:01] [%clk
00:02:27]} Qc7 {[%emt 00:00:03] [%clk 00:02:25]} 14. g3 {[%emt 00:00:21] [%clk
00:02:08]} Bxd3 {[%emt 00:00:02] [%clk 00:02:25]} 15. Qxd3 {[%emt 00:00:03]
[%clk 00:02:07]} e5 {[%emt 00:00:03] [%clk 00:02:25]} 16. dxe5 {[%emt 00:00:26]
[%clk 00:01:43]} Bxe5 {[%clk 00:02:26]} 17. Bxe5 {[%emt 00:00:01] [%clk
00:01:44]} Qxe5 {[%emt 00:00:01] [%clk 00:02:27]} 18. Qd4 {[%emt 00:00:01] [%clk
00:01:45]} Qg5 {[%clk 00:02:28]} 19. Rae1 {[%emt 00:00:06] [%clk 00:01:41]} Rfe8
{[%emt 00:00:02] [%clk 00:02:28]} 20. e4 {[%emt 00:00:17] [%clk 00:01:27]} dxe4
{[%emt 00:00:13] [%clk 00:02:17]} 21. Rxe4 {[%clk 00:01:28]} Rxe4 {[%emt
00:00:18] [%clk 00:02:02]} 22. Qxe4 {[%emt 00:00:02] [%clk 00:01:28]} Rd8 {[%emt
00:00:01] [%clk 00:02:03]} 23. Kg2 {[%emt 00:00:13] [%clk 00:01:17]} Qc5 {[%emt
00:00:11] [%clk 00:01:54]} 24. Rf2 {[%emt 00:00:04] [%clk 00:01:15]} g6 {[%emt
00:00:01] [%clk 00:01:54]} 25. Re2 {[%emt 00:00:12] [%clk 00:01:06]} h5 {[%clk
00:01:54]} 26. h4 {[%emt 00:00:03] [%clk 00:01:05]} Rd1 {[%emt 00:00:06] [%clk
00:01:50]} 27. Rf2 {[%emt 00:00:01] [%clk 00:01:06]} Qc3 {[%emt 00:00:11] [%clk
00:01:41]} 28. f4 {[%emt 00:00:27] [%clk 00:00:42]} Re1 {[%emt 00:00:13] [%clk
00:01:30]} 29. Qf3 {[%emt 00:00:24] [%clk 00:00:20]} Qd4 {[%emt 00:00:10] [%clk
00:01:21]} 30. f5 {[%emt 00:00:10] [%clk 00:00:12]} Re3 {[%emt 00:00:01] [%clk
00:01:22]} 31. Qf4 {[%emt 00:00:02] [%clk 00:00:12]} Qd5+ {[%emt 00:00:07] [%clk
00:01:17]} 32. Kh2 {[%emt 00:00:06] [%clk 00:00:08]} Re1 {[%emt 00:00:01] [%clk
00:01:17]} 33. Rg2 {[%emt 00:00:02] [%clk 00:00:08]} Qd1 {[%emt 00:00:08] [%clk
00:01:11]} 34. Rf2 {[%emt 00:00:25]} Qd5 {[%clk 00:00:53]} 35. Rg2 {[%emt
00:00:01] [%clk 00:00:07]} Qxf5 {[%emt 00:00:14] [%clk 00:00:40]} 36. Qxf5
{[%emt 00:00:02] [%clk 00:00:08]} gxf5 {[%emt 00:00:01] [%clk 00:00:42]} 37. Rf2
{[%emt 00:00:01] [%clk 00:00:08]} Kg7 {[%emt 00:00:05] [%clk 00:00:39]} 38. a4
{[%emt 00:00:05] [%clk 00:00:06]} Kf6 {[%emt 00:00:01] [%clk 00:00:39]} 39. Kg2
{[%emt 00:00:01] [%clk 00:00:07]} Re3 {[%emt 00:00:06] [%clk 00:00:35]} 40. Rd2
{[%emt 00:00:01] [%clk 00:00:08]} Ke6 {[%emt 00:00:03] [%clk 00:00:34]} 41. Kf2
{[%emt 00:00:01] [%clk 00:00:09]} Rc3 {[%emt 00:00:01] [%clk 00:00:35]} 42. Re2+
{[%emt 00:00:02] [%clk 00:00:09]} Kf6 {[%emt 00:00:08] [%clk 00:00:29]} 43. Rd2
{[%emt 00:00:01] [%clk 00:00:10]} a5 {[%emt 00:00:03] [%clk 00:00:28]} 44. Kg2
{[%emt 00:00:01] [%clk 00:00:11]} c5 {[%emt 00:00:05] [%clk 00:00:25]} 45. Rd6+
{[%emt 00:00:08] [%clk 00:00:05]} Ke5 {[%clk 00:00:26]} 46. Rb6 {[%emt 00:00:04]
[%clk 00:00:04]} Rxc2+ {[%emt 00:00:01] [%clk 00:00:27]} 47. Kh3 {[%clk
00:00:05]} Rc3 {[%emt 00:00:03] [%clk 00:00:26]} 48. Kg2 {[%emt 00:00:01] [%clk
00:00:07]} f4 {[%emt 00:00:10] [%clk 00:00:19]} 49. gxf4+ {[%emt 00:00:01] [%clk
00:00:07]} Kxf4 {[%emt 00:00:01] [%clk 00:00:19]} 50. Rxb7 {[%emt 00:00:01]
[%clk 00:00:08]} f5 {[%emt 00:00:04] [%clk 00:00:18]} 51. Rb5 {[%emt 00:00:03]
[%clk 00:00:07]} Kg4 {[%emt 00:00:02] [%clk 00:00:17]} 52. Rxa5 {[%emt 00:00:01]
[%clk 00:00:08]} f4 {[%emt 00:00:01] [%clk 00:00:18]} 53. Ra8 {[%emt 00:00:02]
[%clk 00:00:08]} Rc2+ {[%emt 00:00:07] [%clk 00:00:12]} 54. Kf1 {[%clk
00:00:09]} Kf3 {[%emt 00:00:03] [%clk 00:00:12]} 55. Ke1 {[%clk 00:00:11]} Rb2
{[%emt 00:00:03] [%clk 00:00:11]} 56. Rc8 {[%emt 00:00:04] [%clk 00:00:10]} Ke3
{[%emt 00:00:05] [%clk 00:00:07]} 57. Re8+ {[%emt 00:00:01] [%clk 00:00:11]} Kd4
{[%emt 00:00:01] [%clk 00:00:08]} 58. Rf8 {[%emt 00:00:01] [%clk 00:00:12]} Ke4
{[%emt 00:00:02] [%clk 00:00:08]} 59. Re8+ {[%emt 00:00:01] [%clk 00:00:13]} Kf3
{[%emt 00:00:03] [%clk 00:00:07]} 60. Rc8 {[%clk 00:00:14]} Rxb3 {[%emt
00:00:02] [%clk 00:00:07]} 61. Rxc5 {[%emt 00:00:02] [%clk 00:00:15]} Kg4 {[%emt
00:00:02] [%clk 00:00:07]} 62. Rc4 {[%emt 00:00:02] [%clk 00:00:15]} Kg3 {[%emt
00:00:03] [%clk 00:00:07]} 63. Rc1 {[%emt 00:00:12] [%clk 00:00:03]} f3 {[%emt
00:00:02] [%clk 00:00:07]} 64. Kf1 {[%emt 00:00:03] [%clk 00:00:03]} Rb2 {[%emt
00:00:01] [%clk 00:00:08]} 65. Ra1 {[%emt 00:00:02] [%clk 00:00:03]} Rh2 {[%emt
00:00:01] [%clk 00:00:07]} 0-1

[Site "Europe Echecs"]

[Event "Championnat d'Europe de Blitz"]
[Date "2024.12.09"]
[White "Fridman, Daniel"]
[Black "Suljovic, Sulejman"]
[WhiteElo "2571"]
[BlackElo "2182"]
[Round "2.21"]
[Result "1-0"]
[TimeControl "180+2"]

1. d4 {[%emt 00:02:21] [%clk 00:03:02]} e6 {[%clk 00:03:04]} 2. Nf3 {[%emt
00:00:01] [%clk 00:03:03]} f5 {[%emt 00:00:01] [%clk 00:03:05]} 3. g3 {[%emt
00:00:03] [%clk 00:03:02]} b6 {[%clk 00:03:07]} 4. Bg2 {[%emt 00:00:02] [%clk
00:03:02]} Bb7 {[%clk 00:03:08]} 5. O-O {[%emt 00:00:01] [%clk 00:03:03]} Nf6
{[%clk 00:03:10]} 6. c4 {[%emt 00:00:02] [%clk 00:03:03]} a5 {[%emt 00:00:02]
[%clk 00:03:11]} 7. Nc3 {[%emt 00:00:03] [%clk 00:03:02]} Bb4 {[%clk 00:03:12]}
8. Nb5 {[%emt 00:00:08] [%clk 00:02:57]} Be7 {[%emt 00:00:15] [%clk 00:02:59]}
9. Bf4 {[%emt 00:00:02] [%clk 00:02:56]} Na6 {[%emt 00:00:05] [%clk 00:02:57]}
10. Rc1 {[%emt 00:00:11] [%clk 00:02:47]} O-O {[%emt 00:00:02] [%clk 00:02:56]}
11. Nc3 {[%emt 00:00:05] [%clk 00:02:44]} Ne4 {[%emt 00:00:02] [%clk 00:02:56]}
12. d5 {[%emt 00:00:15] [%clk 00:02:31]} Nxc3 {[%emt 00:00:03] [%clk 00:02:56]}
13. Rxc3 {[%emt 00:00:01] [%clk 00:02:31]} Bf6 {[%emt 00:00:16] [%clk 00:02:42]}
14. Rc2 {[%emt 00:00:02] [%clk 00:02:31]} Nc5 {[%emt 00:00:08] [%clk 00:02:37]}
15. b3 {[%emt 00:00:09] [%clk 00:02:23]} Re8 {[%emt 00:00:03] [%clk 00:02:37]}
16. Be3 {[%emt 00:00:15] [%clk 00:02:10]} e5 {[%emt 00:00:34] [%clk 00:02:05]}
17. d6 {[%emt 00:00:09] [%clk 00:02:02]} Be4 {[%emt 00:00:31] [%clk 00:01:37]}
18. dxc7 {[%emt 00:00:08] [%clk 00:01:56]} Qxc7 {[%emt 00:00:01] [%clk
00:01:37]} 19. Rd2 {[%emt 00:00:02] [%clk 00:01:57]} Rad8 {[%emt 00:00:18] [%clk
00:01:21]} 20. Bxc5 {[%emt 00:00:17] [%clk 00:01:42]} bxc5 {[%emt 00:00:02]
[%clk 00:01:21]} 21. Ne1 {[%emt 00:00:01] [%clk 00:01:42]} Bxg2 {[%emt 00:00:03]
[%clk 00:01:21]} 22. Nxg2 {[%emt 00:00:02] [%clk 00:01:42]} h6 {[%emt 00:00:12]
[%clk 00:01:11]} 23. Ne3 {[%emt 00:00:01] [%clk 00:01:42]} f4 {[%emt 00:00:10]
[%clk 00:01:04]} 24. Nd5 {[%clk 00:01:43]} Qc6 {[%emt 00:00:07] [%clk 00:00:59]}
25. e4 {[%emt 00:00:09] [%clk 00:01:35]} Bg5 {[%emt 00:00:32] [%clk 00:00:29]}
26. h4 {[%emt 00:00:04] [%clk 00:01:33]} Bf6 {[%emt 00:00:01] [%clk 00:00:30]}
27. Qg4 {[%emt 00:00:02] [%clk 00:01:33]} Qe6 {[%emt 00:00:04] [%clk 00:00:28]}
28. Qf3 {[%emt 00:00:13] [%clk 00:01:22]} Rf8 {[%emt 00:00:04] [%clk 00:00:26]}
29. Qg2 {[%emt 00:00:10] [%clk 00:01:14]} g5 {[%emt 00:00:05] [%clk 00:00:24]}
30. gxf4 {[%emt 00:00:07] [%clk 00:01:09]} exf4 {[%emt 00:00:01] [%clk
00:00:24]} 31. Nxf4 {[%emt 00:00:02] [%clk 00:01:10]} Qf7 {[%emt 00:00:03] [%clk
00:00:23]} 32. Nd5 {[%emt 00:00:02] [%clk 00:01:10]} Qh5 {[%clk 00:00:24]} 33.
hxg5 {[%emt 00:00:02] [%clk 00:01:09]} Bxg5 {[%emt 00:00:06] [%clk 00:00:20]}
34. f4 {[%emt 00:00:02] [%clk 00:01:09]} Kh8 {[%emt 00:00:11] [%clk 00:00:15]}
35. fxg5 {[%emt 00:00:06] [%clk 00:01:05]} Rxf1+ {[%emt 00:00:02] [%clk
00:00:16]} 36. Kxf1 {[%emt 00:00:02] [%clk 00:01:05]} Rf8+ {[%clk 00:00:17]} 37.
Kg1 {[%emt 00:00:02] [%clk 00:01:05]} Qh4 {[%emt 00:00:04] [%clk 00:00:16]} 38.
Re2 {[%emt 00:00:10] [%clk 00:00:57]} Rg8 {[%clk 00:00:17]} 39. g6 {[%emt
00:00:11] [%clk 00:00:47]} Qh5 {[%emt 00:00:01] [%clk 00:00:19]} 40. Nf6 {[%emt
00:00:05] [%clk 00:00:43]} 1-0

[Site "Europe Echecs"]

[Event "Championnat d'Europe de Blitz"]
[Date "2024.12.09"]
[White "Promyshlyanskiy, Vitaliy"]
[Black "Quparadze, Giga"]
[WhiteElo "2279"]
[BlackElo "2537"]
[Round "2.22"]
[Result "0-1"]
[TimeControl "180+2"]

1. e4 {[%emt 00:18:01] [%clk 00:03:04]} c5 {[%emt 00:00:02] [%clk 00:03:02]} 2.
Nc3 {[%emt 00:00:01] [%clk 00:03:05]} e6 {[%emt 00:00:01] [%clk 00:03:03]} 3. f4
{[%emt 00:00:02] [%clk 00:03:05]} d5 {[%emt 00:00:01] [%clk 00:03:03]} 4. Bb5+
{[%emt 00:00:02] [%clk 00:03:06]} Bd7 {[%emt 00:00:02] [%clk 00:03:03]} 5. Qe2
{[%clk 00:03:07]} d4 {[%emt 00:00:03] [%clk 00:03:02]} 6. Bxd7+ {[%emt 00:00:01]
[%clk 00:03:07]} Qxd7 {[%emt 00:00:02] [%clk 00:03:03]} 7. Nd1 {[%clk 00:03:08]}
Nc6 {[%emt 00:00:01] [%clk 00:03:04]} 8. d3 {[%emt 00:00:01] [%clk 00:03:09]} f6
{[%emt 00:00:01] [%clk 00:03:04]} 9. Nf3 {[%emt 00:00:02] [%clk 00:03:10]} Bd6
{[%clk 00:03:05]} 10. O-O {[%emt 00:00:03] [%clk 00:03:08]} Bc7 {[%emt 00:00:01]
[%clk 00:03:06]} 11. Nf2 {[%emt 00:00:04] [%clk 00:03:06]} Nge7 {[%clk
00:03:07]} 12. Bd2 {[%emt 00:00:04] [%clk 00:03:04]} h6 {[%emt 00:00:10] [%clk
00:02:59]} 13. a3 {[%emt 00:00:02] [%clk 00:03:05]} g5 {[%emt 00:00:02] [%clk
00:02:59]} 14. g3 {[%emt 00:00:14] [%clk 00:02:52]} gxf4 {[%emt 00:00:04] [%clk
00:02:57]} 15. gxf4 {[%clk 00:02:53]} O-O-O {[%emt 00:00:06] [%clk 00:02:53]}
16. b4 {[%emt 00:00:05] [%clk 00:02:50]} Ng6 {[%emt 00:00:02] [%clk 00:02:53]}
17. Nh3 {[%emt 00:00:13] [%clk 00:02:39]} Rdg8 {[%emt 00:00:09] [%clk 00:02:47]}
18. Kh1 {[%clk 00:02:40]} Qe7 {[%emt 00:00:05] [%clk 00:02:44]} 19. Rg1 {[%emt
00:00:35] [%clk 00:02:07]} f5 {[%clk 00:02:45]} 20. e5 {[%emt 00:00:09] [%clk
00:02:00]} Qd7 {[%emt 00:00:03] [%clk 00:02:46]} 21. Rg3 {[%emt 00:00:32] [%clk
00:01:32]} cxb4 {[%emt 00:00:07] [%clk 00:02:40]} 22. axb4 {[%emt 00:00:02]
[%clk 00:01:32]} Qd5 {[%emt 00:00:01] [%clk 00:02:41]} 23. Qg2 {[%emt 00:00:08]
[%clk 00:01:26]} Nge7 {[%emt 00:00:04] [%clk 00:02:39]} 24. Nh4 {[%emt 00:00:34]
[%clk 00:00:55]} Rxg3 {[%emt 00:00:02] [%clk 00:02:39]} 25. hxg3 {[%emt
00:00:05] [%clk 00:00:51]} a6 {[%emt 00:00:02] [%clk 00:02:40]} 26. Ng1 {[%emt
00:00:14] [%clk 00:00:39]} Qxg2+ {[%emt 00:00:08] [%clk 00:02:33]} 27. Kxg2
{[%emt 00:00:02] [%clk 00:00:40]} Nd5 {[%clk 00:02:34]} 28. Rb1 {[%emt 00:00:06]
[%clk 00:00:36]} b5 {[%emt 00:00:02] [%clk 00:02:35]} 29. Ne2 {[%emt 00:00:04]
[%clk 00:00:34]} Kb7 {[%emt 00:00:03] [%clk 00:02:34]} 30. Nf3 {[%emt 00:00:03]
[%clk 00:00:33]} Bb6 {[%clk 00:02:35]} 31. Rh1 {[%emt 00:00:06] [%clk 00:00:29]}
h5 {[%emt 00:00:11] [%clk 00:02:26]} 32. Ng5 {[%emt 00:00:02] [%clk 00:00:29]}
Ncxb4 {[%emt 00:00:09] [%clk 00:02:19]} 33. Bxb4 {[%emt 00:00:12] [%clk
00:00:19]} Nxb4 {[%clk 00:02:20]} 34. Nxe6 {[%emt 00:00:02] [%clk 00:00:19]}
Nxc2 {[%clk 00:02:21]} 35. Kf3 {[%emt 00:00:05] [%clk 00:00:16]} a5 {[%emt
00:00:03] [%clk 00:02:20]} 36. Rc1 {[%emt 00:00:02] [%clk 00:00:15]} Rc8 {[%emt
00:00:02] [%clk 00:02:20]} 37. Ng7 {[%emt 00:00:05] [%clk 00:00:13]} a4 {[%emt
00:00:21] [%clk 00:02:01]} 38. Nxf5 {[%emt 00:00:01] [%clk 00:00:13]} Ka6 {[%emt
00:00:08] [%clk 00:01:56]} 39. e6 {[%emt 00:00:04] [%clk 00:00:11]} b4 {[%emt
00:00:07] [%clk 00:01:50]} 40. e7 {[%emt 00:00:05] [%clk 00:00:09]} b3 {[%emt
00:00:02] [%clk 00:01:50]} 41. Nexd4 {[%emt 00:00:05] [%clk 00:00:06]} Bxd4
{[%emt 00:00:04] [%clk 00:01:48]} 42. Nxd4 {[%clk 00:00:07]} Nxd4+ {[%emt
00:00:02] [%clk 00:01:49]} 43. Kf2 {[%emt 00:00:04] [%clk 00:00:05]} Re8 {[%emt
00:00:02] [%clk 00:01:49]} 44. Re1 {[%emt 00:00:04] [%clk 00:00:03]} a3 {[%emt
00:00:02] [%clk 00:01:48]} 45. Re4 {[%clk 00:00:04]} a2 {[%emt 00:00:02] [%clk
00:01:49]} 0-1

[Site "Europe Echecs"]

[Event "Championnat d'Europe de Blitz"]
[Date "2024.12.09"]
[White "Muter, Donny"]
[Black "Mastrovasilis, Dimitrios"]
[WhiteElo "2206"]
[BlackElo "2537"]
[Round "2.23"]
[Result "0-1"]
[TimeControl "180+2"]

1. d4 {[%emt 00:00:04] [%clk 00:03:02]} d5 {[%clk 00:03:03]} 2. Nf3 {[%clk
00:03:03]} Nf6 {[%emt 00:00:02] [%clk 00:03:04]} 3. Bf4 {[%emt 00:00:04] [%clk
00:03:00]} c5 {[%emt 00:00:06] [%clk 00:03:00]} 4. e3 {[%emt 00:00:01] [%clk
00:03:01]} Nc6 {[%emt 00:00:02] [%clk 00:03:01]} 5. c3 {[%emt 00:00:05] [%clk
00:02:57]} Qb6 {[%emt 00:00:02] [%clk 00:03:01]} 6. Qc1 {[%emt 00:00:01] [%clk
00:02:58]} Nh5 {[%emt 00:00:14] [%clk 00:02:48]} 7. Bg3 {[%emt 00:00:14] [%clk
00:02:47]} Bf5 {[%emt 00:00:17] [%clk 00:02:33]} 8. dxc5 {[%emt 00:00:10] [%clk
00:02:40]} Qxc5 {[%emt 00:00:02] [%clk 00:02:32]} 9. Nbd2 {[%emt 00:00:04] [%clk
00:02:37]} Nxg3 {[%emt 00:00:13] [%clk 00:02:21]} 10. hxg3 {[%emt 00:00:01]
[%clk 00:02:38]} e5 {[%emt 00:00:01] [%clk 00:02:22]} 11. b4 {[%emt 00:00:17]
[%clk 00:02:23]} Qd6 {[%emt 00:00:01] [%clk 00:02:23]} 12. Be2 {[%emt 00:00:19]
[%clk 00:02:06]} Be7 {[%emt 00:00:03] [%clk 00:02:22]} 13. O-O {[%emt 00:00:02]
[%clk 00:02:05]} O-O {[%emt 00:00:03] [%clk 00:02:21]} 14. Rd1 {[%emt 00:00:30]
[%clk 00:01:37]} Rac8 {[%emt 00:00:08] [%clk 00:02:16]} 15. Qb2 {[%emt 00:00:10]
[%clk 00:01:29]} e4 {[%emt 00:00:17] [%clk 00:02:01]} 16. Nh4 {[%emt 00:01:20]
[%clk 00:00:11]} Bxh4 {[%emt 00:00:12] [%clk 00:01:51]} 17. gxh4 {[%clk
00:00:12]} Qf6 {[%emt 00:00:04] [%clk 00:01:50]} 18. g3 {[%emt 00:00:03] [%clk
00:00:12]} Ne5 {[%emt 00:00:01] [%clk 00:01:51]} 19. Rac1 {[%emt 00:00:08] [%clk
00:00:05]} Bg4 {[%emt 00:00:09] [%clk 00:01:43]} 20. Bxg4 {[%emt 00:00:03] [%clk
00:00:04]} Nd3 {[%emt 00:00:01] [%clk 00:01:44]} 21. Qb3 {[%emt 00:00:04] [%clk
00:00:03]} Qxf2+ {[%emt 00:00:02] [%clk 00:01:44]} 22. Kh1 {[%clk 00:00:05]}
Qxg3 {[%emt 00:00:06] [%clk 00:01:40]} 0-1

[Site "Europe Echecs"]